Cogmind - Beta 15 @@@ ROGUE MODE // 2025.05.13 @ 13:08:59 Player: Sunvar Result: Destroyed by Autobeam Turret with Autobeam Performance ------------- Evolutions (0) 0 Regions Visited (2) 400 Robots Destroyed (33) 165 Value Destroyed (671) 671 Prototype IDs (2) 40 Alien Tech Used (0) 0 Bonus (0) 0 TOTAL SCORE: 1276 Bonus ------- None Cogmind --------- Core Integrity 0/250 Matter 300/300 Energy 93/100 System Corruption 0% Temperature Cool (12) Movement Rolling (140) Ox4 Location -10/Subcaves Parts ------- > --- POWER (1) -------- (None) > --- PROPULSION (2) --- Wheel > --- UTILITY (2) ------ High-capacity Storage Unit Structural Scanner > --- WEAPON (2) ------- Improved Light Cannon > --- INVENTORY (20) --- Subdweller Power Source Subdweller Power Source Subdweller Power Source Improved Treads Improved Treads Subdweller Monowheel Subdweller Monowheel Subdweller Monowheel Subdweller Monowheel Subdweller Optics Hacking Suite Hacking Suite Subdweller Laser Subdweller Beam Cannon Subdweller Beam Cannon Improved Light Cannon EMP Blaster Grenade Launcher Datajack Peak State ------------ > --- POWER ------------ Ion Engine > --- PROPULSION ------- Improved Treads Wheel > --- UTILITY ---------- High-capacity Storage Unit Structural Scanner > --- WEAPON ----------- Battle Rifle Improved Light Cannon > --- INVENTORY -------- Light Treads Light Treads Improved Treads Improved Treads Wheel Wheel Wheel Subdweller Monowheel Subdweller Optics Hacking Suite Hacking Suite Subdweller Beam Cannon Subdweller Beam Cannon Light Cannon Improved Light Cannon Improved Light Cannon Improved Light Cannon EMP Blaster Grenade Launcher Datajack [Rating: 13] Favorites ----------- Power Light Ion Engine Engine Light Ion Engine Propulsion Wheel Treads Improved Treads Wheel Wheel Utility High-capacity Storage Unit Device Structural Scanner Storage High-capacity Storage Unit Weapon Assault Rifle Energy Cannon Subdweller Beam Cannon Ballistic Gun Assault Rifle Ballistic Cannon Improved Light Cannon Launcher Grenade Launcher Build | -11 -10 -10 ------- Run | Yrd Mat Sub Slots Evolved . | . . . Power . | . . . Propulsion . | . . . Utility . | . . . Weapon . | . . . Parts Attached 27 | 7 12 8 Power 4 | 1 2 1 Engine 4 | 1 2 1 Core . | . . . Reactor . | . . . Propulsion 7 | 2 2 3 Treads 3 | 1 1 1 Leg . | . . . Wheel 4 | 1 1 2 Hover . | . . . Flight . | . . . Utility 4 | 2 2 . Device 2 | 1 1 . Storage 2 | 1 1 . Processor . | . . . Hackware . | . . . Protection . | . . . Artifact . | . . . Weapon 12 | 2 6 4 Energy Gun . | . . . Energy Cannon 1 | . . 1 Ballistic Gun 4 | 2 1 1 Ballistic Cannon 5 | . 3 2 Launcher 2 | . 2 . Special Weapon . | . . . Impact Weapon . | . . . Slashing Weapon . | . . . Piercing Weapon . | . . . Special Melee Weapon . | . . . Unidentified Prototypes . | . . . Parts Lost 9 | . 3 6 Power 4 | . 2 2 Propulsion 3 | . . 3 Utility 1 | . 1 . Weapon 1 | . . 1 Highest Loss Streak 3 | . 1 3 To Critical Strikes . | . . . Average Backups 17 | 2 16 19 Power 1 | . 1 1 Propulsion 6 | 1 6 7 Utility 1 | . 1 2 Weapon 6 | . 6 7 Tool/Special . | . . . Unused Backups 22 | . 2 20 Power 4 | . 1 3 Propulsion 10 | . 1 9 Utility 3 | . . 3 Weapon 4 | . . 4 Tool/Special 1 | . . 1 Average Slot Usage (%) 95 | . 94 97 Engine 13 | . 14 11 Treads 13 | . 13 14 Wheel 13 | . 14 13 Device 11 | . 9 14 Storage 14 | . 14 14 Ballistic Gun 17 | . 19 13 Ballistic Cannon 10 | . 7 14 Peak Build Rating 13 | 7 12 13 Average Rating 10 | 5 9 12 On Entrance 6 | . 7 12 Naked Turns . | . . . Heaviest Build 58 | 14 51 58 Greatest Support 20 | 20 20 10 Greatest Overweight (x) 5 | 1 5 5 Average Overweight (x) 3 | . 3 4 Largest Inventory Capacity 20 | 8 20 20 Average Capacity 18 | 7 18 20 Most Carried 20 | 3 20 20 Average Carried 17 | 2 16 19 Final Capacity 20 | 8 20 20 Final Carried 20 | 3 20 19 Class Distribution -------------------- 100% | Mutant Dominant Class ---------------- Mutant | -10/Materials Mutant | -10/Subcaves Resources | -11 -10 -10 ----------- Run | Yrd Mat Sub Matter Collected 1088 | 290 451 347 Remotely . | . . . Salvage Created 900 | 71 558 271 Parts 74 | 7 50 17 Haulers Intercepted 2 | . 2 . Recyclers Shooed . | . . . Parts Field Recycled . | . . . Retrieved Matter . | . . . Parts Self-Destructed 7 | . . 7 Prevented . | . . . Kills | -11 -10 -10 ------- Run | Yrd Mat Sub Combat Hostiles Destroyed 20 | . 11 9 Guns 11 | . 6 5 Cannons 4 | . . 4 AOE 5 | . 5 . Classes Destroyed 10 | 1 8 1 Worker 1 | . 1 . Builder 1 | . 1 . Tunneler 4 | 3 1 . Hauler 2 | . 2 . Recycler 1 | . 1 . Operator 2 | . 2 . Watcher 2 | . 2 . Swarmer 8 | . 6 2 Grunt 5 | . 5 . Subdweller 7 | . . 7 Best Kill Streak 3 | 2 3 2 Combat Bots Only 3 | . 3 2 Max Kills in Single Turn 2 | 1 2 1 Gunslinging . | . . . Exploded 2 | . 2 . Melee . | . . . Uniques/NPCs Destroyed . | . . . Combat | -11 -10 -10 -------- Run | Yrd Mat Sub Hostile Shots Fired 146 | . 50 96 Missed 36 | . 7 29 Hits 110 | . 43 67 Projectile 110 | . 43 67 Critical Strikes 5 | . 1 4 Damage Taken 1748 | . 618 1130 Core 254 | . 97 157 Absorbed by Shields . | . . . Regen/Repaired (Parts) 185 | . 185 . Core Remaining (%) 100 | 100 . . Volleys Fired 118 | 5 81 32 Largest 2 | 2 2 2 Hottest 113 | 40 53 113 Shots Fired 206 | 10 133 63 Gun 139 | 10 102 27 Cannon 63 | . 27 36 Launcher 4 | . 4 . Special . | . . . Kinetic 197 | 10 129 58 Thermal 5 | . . 5 Explosive 3 | . 3 . Electromagnetic 1 | . 1 . Robot Hit Streak 30 | 7 14 30 Robot Miss Streak 3 | . 3 3 Penetration Max . | . . . Secondary Targets 1 | . 1 . Max Gunslinging Chain 1 | . 1 . Shots Hit Robots 124 | 7 71 46 Core Hits 55 | 5 34 16 Critical Kills . | . . . Critical Parts Destroyed . | . . . Critical Strikes 2 | . 1 1 Blast 2 | . 1 1 Melee Attacks . | . . . Impact . | . . . Slashing . | . . . Piercing . | . . . Sneak Attacks . | . . . Combat Hostiles . | . . . Follow-up Attacks . | . . . Damage Inflicted 2008 | 77 1077 854 Guns 1061 | 77 647 337 Cannons 593 | . 76 517 Explosions 334 | . 334 . Melee . | . . . Ramming 20 | . 20 . Kinetic 1576 | 77 723 776 Thermal 78 | . . 78 Explosive 285 | . 285 . Electromagnetic 49 | . 49 . Impact . | . . . Slashing . | . . . Piercing . | . . . Highest Corruption . | . . . Average Corruption . | . . . Corruption Purged . | . . . Corruption Blocked . | . . . Overload Shots . | . . . Overflow Damage 39 | . 27 12 Projectiles 12 | . . 12 Explosions 27 | . 27 . Melee . | . . . Knockbacks 9 | . 1 8 Impact . | . . . Kinetic 8 | . 1 7 Secondary 1 | . . 1 Self-Inflicted Damage 151 | . 151 . Shots 5 | . 5 . Rammed 1 | . 1 . Targets Rammed 1 | . 1 . Kicked . | . . . Crushed . | . . . Highest Temperature 239 | . 28 239 Average Temperature 28 | . 11 94 Received Heat Transfer 816 | . 213 603 Siege Activations . | . . . Martial Activations . | . . . Shielding Activations . | . . . Robots Disrupted . | . . . Combat Hostiles . | . . . Robots Corrupted . | . . . Combat Hostiles . | . . . Parts Fried . | . . . Impact Corruptions . | . . . Robots Melted . | . . . Combat Hostiles . | . . . Parts Melted . | . . . Heat Transferred 111 | . . 111 Parts Sabotaged . | . . . Parts Stolen . | . . . Parts Stripped . | . . . Power Chain Reactions 1 | . 1 . Alert | -11 -10 -10 ------- Run | Yrd Mat Sub Maximum Alert Level . | . . . Low Security (%) 100 | 100 100 . Level 1 . | . . . Level 2 . | . . . Level 3 . | . . . Level 4 . | . . . Level 5 . | . . . High Security . | . . . Max Security . | . . . Peak Influence 193 | 10 193 . Initial . | . . . Average 52 | 2 55 . Influence Increases 584 | 15 439 130 Destroy 0b10 Robot/C 260 | . 220 40 Destroy 0b10 Robot/NC 65 | 15 50 . Destroy Leader 48 | . 48 . Successful Hack 30 | . 30 . Disable Machine 30 | . 30 . Destroy Structure 16 | . 16 . Lose Combat Pursuer 135 | . 45 90 Influence Decreases 584 | 15 439 130 Time Decay 526 | 15 406 105 Lost Part 48 | . 23 25 Lost Ally 10 | . 10 . Squads Dispatched 1 | . 1 . Investigation . | . . . Extermination . | . . . Reinforcement 1 | . 1 . Assault . | . . . Garrison . | . . . Intercept . | . . . Searches Triggered . | . . . Construction Impeded . | . . . Haulers Reinforced . | . . . Active Scanning Responses . | . . . Cargo Convoy Interrupts . | . . . Stealth | -11 -10 -10 --------- Run | Yrd Mat Sub Distress Signals 3 | . 3 . Communications Jammed . | . . . Distress Signals . | . . . Times Spotted 42 | . 25 17 Peak Tracking Total 5 | . 4 5 Tactical Retreats 6 | . 3 3 Traps | -11 -10 -10 ------- Run | Yrd Mat Sub Traps Triggered 3 | . . 3 Indirectly . | . . . Trap Hack Attempts . | . . . Triggered . | . . . Disarmed . | . . . Reprogrammed . | . . . Reused . | . . . Traps Extracted . | . . . Installed . | . . . Triggered . | . . . Machines | -11 -10 -10 ---------- Run | Yrd Mat Sub Machines Disabled 4 | . 2 2 Max in Single Turn 1 | . 1 1 Machines Repaired . | . . . Machines Dismantled . | . . . Machines Sabotaged . | . . . Overloaded Fab Kills . | . . . Hacking | -11 -10 -10 --------- Run | Yrd Mat Sub Machines Accessed 13 | . 10 3 Terminals 7 | . 7 . Fabricators . | . . . Repair Stations 1 | . 1 . Recycling Units 2 | . 2 . Scanalyzers . | . . . Garrison Access . | . . . Total Hacks 37 | . 31 6 Successful 23 | . 17 6 Failed 14 | . 14 . Catastrophic 1 | . 1 . Database Lockouts . | . . . Manual 12 | . 12 . Terminals 21 | . 21 . Fabricators . | . . . Repair Stations 6 | . 6 . Recycling Units 4 | . 4 . Scanalyzers . | . . . Garrison Access . | . . . Terminal Hacks 11 | . 5 6 Record 4 | . . 4 Robot Analysis 4 | . 4 . Prototype ID Bank 1 | . 1 . Open Door 1 | . . 1 Release Object 1 | . . 1 Fabricator Hacks . | . . . Repair Station Hacks 6 | . 6 . Scan Component 3 | . 3 . Repair 3 | . 3 . Recycling Unit Hacks 2 | . 2 . Retrieve Components 2 | . 2 . Scanalyzer . | . . . Garrison Access Hacks . | . . . Unauthorized Hacks 4 | . 4 . Terminals 4 | . 4 . Assimilate 2 | . 2 . Botnet 2 | . 2 . Fabricators . | . . . Repair Stations . | . . . Recycling Units . | . . . Scanalyzers . | . . . Garrison Access . | . . . Data Cores Recovered 1 | . 1 . Used 1 | . 1 . Hacking Detections 9 | . 9 . Full Trace Events . | . . . Feedback Events . | . . . Feedback Blocked . | . . . Robot Schematics Acquired . | . . . Robots Built . | . . . Authchips . | . . . Time . | . . . Total Robot Build Rating . | . . . Part Schematics Acquired . | . . . Parts Built . | . . . Authchips . | . . . Time . | . . . Total Part Build Rating . | . . . Parts Repaired 3 | . 3 . Time 84 | . 84 . Parts Recycled . | . . . Recycled Matter . | . . . Retrieved Matter . | . . . Retrieved Components 11 | . 11 . Parts Scanalyzed . | . . . Part Schematics Acquired . | . . . Parts Damaged . | . . . Bothacking | -11 -10 -10 ------------ Run | Yrd Mat Sub Used RIF Installer . | . . . Robots Hacked . | . . . Non-combat . | . . . Combat . | . . . Robot Hacks Applied . | . . . Relay Couplers Released . | . . . Fabnet Peak Effective % . | . . . Robots Rewired . | . . . Allies Hacked . | . . . Hacks Repelled . | . . . Allies | -11 -10 -10 -------- Run | Yrd Mat Sub Total Allies 2 | . 2 . Largest Group 2 | . 2 . Highest-Rated Group 20 | . 20 . Highest-Rated Ally 10 | . 10 . Total Orders 3 | . 3 . STAY 2 | . 2 . FOLLOW 1 | . 1 . Ally Attacks . | . . . Total Damage . | . . . Kills . | . . . Allies Corrupted . | . . . Allies Melted . | . . . Intel | -11 -10 -10 ------- Run | Yrd Mat Sub Active Infowar (turns) 2008 | 2 1083 923 Structural 1404 | . 481 923 Seismic 604 | 2 602 . Robot Analysis Total 4 | . 4 . Derelict Logs Recovered 1 | . . 1 Drone Launches . | . . . Drone Recoveries . | . . . Exploration | -11 -10 -10 ------------- Run | Yrd Mat Sub Turns Passed 2603 | 82 1598 923 Spaces Moved 1327 | 54 787 486 Core 3 | 3 . . Treads 11 | 7 4 . Legs . | . . . Wheels 1313 | 44 783 486 Hover . | . . . Flight . | . . . Fastest Speed 50 | 50 95 140 Average Speed 138 | 100 133 150 Slowest Speed 160 | 160 160 155 Overloaded Moves . | . . . Propulsion Burnouts . | . . . Robots Hopped . | . . . Potential Cave-ins . | . . . Cave-ins Triggered . | . . . Exploration Rate (%) 43 | 3 99 29 Regions Visited 2 Branch Regions 1 Pre-discovered Areas 1 | . . 1 Known Exits Taken . | . . . Unknown Exits Taken 2 | 1 1 . Scrap Searched . | . . . Spaces Dug 4 | . 3 1 Terrain Destroyed 33 | . 31 2 Melee . | . . . Projectile 5 | . 3 2 AOE 28 | . 28 . Terrain Rammed . | . . . Walls Destroyed . | . . . Machines Disabled . | . . . Actions | -11 -10 -10 --------- Run | Yrd Mat Sub Total 1889 | 69 1208 612 Wait 354 | 1 294 59 Move 1325 | 53 786 486 Hop . | . . . Pick Up 37 | 3 21 13 Fast Attach 13 | 7 5 1 Attach 5 | . 2 3 Detach . | . . . Swap 16 | . 11 5 Drop 19 | . 7 12 Fire 118 | 5 81 32 Melee . | . . . Ram 1 | . 1 . Kick . | . . . Crush . | . . . Escape Stasis . | . . . Rewire . | . . . Trap . | . . . Miscellaneous 1 | . . 1 Route ------- -11/Scrapyard -10/Materials (discovered 5 exits: [*Mat x3] / [*Min] / *Sub) -10/Subcaves (discovered 1 exit: [*Rec]) History --------- Turn | Location | Event 2 | -11/Scrapyard | Met Revision 17 33 | -11/Scrapyard | Discovered new exit (range 15) 83 | -11/Scrapyard | Entered Materials 304 | -10/Materials | Build established: Mutant 402 | -10/Materials | Discovered new exit (range 5) 452 | -10/Materials | Discovered new exit (range 11) 630 | -10/Materials | Discovered new exit (range 13) 812 | -10/Materials | Repaired Imp. Treads 839 | -10/Materials | Repaired Assault Rifle 867 | -10/Materials | Repaired Lgt. Cannon 1158 | -10/Materials | Discovered new exit (range 4) 1634 | -10/Materials | Discovered new exit (range 11) 1681 | -10/Materials | Entered Subcaves 1682 | -10/Subcaves | Approached by a straggling Scientist 1787 | -10/Subcaves | Core integrity fell below 50% 1859 | -10/Subcaves | Released subatomizers from SUBCON Basin 2073 | -10/Subcaves | Visited Clippyterm 2078 | -10/Subcaves | Learned location of Extension (-4) 2254 | -10/Subcaves | Discovered new exit (range 10) 2480 | -10/Subcaves | Learned Materials terminal intel 2595 | -10/Subcaves | Core integrity fell below 20% 2604 | -10/Subcaves | Destroyed by Autobeam Turret with Autobeam Last Messages --------------- 02475_ Spikes shoot up from the floor. 02475_ Critical hit (Impale). 02475_ Ion Engine destroyed. 02475_ Critical hit (Impale). 02480_ Acquired derelict log, extracted data. Data stored: Materials terminal intel. 02497_ Triggered Piercing Trap. 02497_ Spikes shoot up from the floor. 02497_ Critical hit (Impale). 02520_ Subatomizers dissect the Disposable Heat Sink. 02591_ Subatomizers dissect the Sub. Beam Cannon. 02594_ Machine disabled. 02595_ Acquired 7 matter. 02595_ Wheel destroyed. 02597_ Machine disabled. 02598_ Acquired 7 matter. 02600_ Battle Rifle destroyed. 02601_ Acquired 5 matter. 02601_ Imp. Treads destroyed. 02604_ Subatomizers dissect the Sub. Beam Cannon. Map ----- +----------------------------------------------------+ | ##"X ## [= % # # ???### | | ##"" ## ## ###=&%##### ## ?## ## | | ##"""## # ###!%] #### #### ###### # | | ######### ####" %### #### #### # | | ########## #####" ### ## | | #####??########### ### % ## | | # ############### ## ## % ## | | ########### ### ## ## | | ## #### #### % ### | | ### # ## ####### ###? | | ############ #### # # ##?? | | ! ### ######## ### ####### # ###? | | ##### #### ### ######## ## ###? | | ## ###### ###???## ## ##? | | #### ##### #### ##????## ##? | | # ##### "###" ?? ##### ###???### ###? | | ######" ##""""""????### ###???### # ##### | | ##### "" ???## % ##?#### ## ###### | | #### "" ##### % ###?### ## ####% | | ### "" "#######%;####### ### ## | | ## """" # # ###""" "####?## #### | | ## ""##### ## ###" ####### ###### | | # "#####"###? ###" ######## ###### ## | | # "" ###""##??? ##" t ##### ####### ### | | ## ## ##??? #< % #### # #### ### | | ### ###""?"##""t@ %!&## ### ###? | | ### ##"# ### #]%& ## ## #### | | ## #### " ###" # ! # # #### | | # & ######## "####""" "# ## ## #%# | | # ]=####### " ########## ### # | | ] #####??" " " ######## #### ## | | #### ? " ""## "### #### # ^ # | | # ## ## ### ""%# #### # | | # # # ###### " ## #####% ## # | | # ## ## ###### ## #####^ ### | | ##### ### ####### ## ## ########## % % | | ##### #### ###### ""## %########## | | ## ##### ## # "" ##### | | # ## ###### % " """" #### | | # ########?## """ ##### # % | | ## ####??### ## ##### " ## # # | | # #?????############## ## # | | # ##??????#########?###"" ## # ## | | # ###?????????????????### #### ### | | # #####?????????????????######## #####" | | # ####???????????????????####### ########### | | # ##??????????????????????????#########?####### | | # #??????????????????????????#####????????####" | | ## ##???????????????????????????????????????????" | | ######???????????????????????????????????????????? | +----------------------------------------------------+ Best States ------------- Heat Dissipation 25 Energy Generation 10 Energy Capacity 250 Matter Stores 300 Matter Capacity 300 Sight Range 16 Terrain Scan Density 10 Evasion (%) 44 Recoil Reduction 1 Item Schematics ----------------- None Robot Schematics ------------------ None Fabricated ------------ Nothing Repaired ---------- Imp. Treads | 53% | -10/Materials Assault Rifle | 21% | -10/Materials Lgt. Cannon | 71% | -10/Materials Alien Tech Used ----------------- None Achievements -------------- None Challenges ------------ None Game ------ Seed PhaseCoolingCharge Manual? 0 Play Time 00:26:40 Cumulative 148.0 hours Start 2025.05.13 @ 12:44:23 End 2025.05.13 @ 13:08:59 Sessions 1 Manual Loads 0 Difficulty Rogue Special Mode None Game No. 101 Rogue 101 Adventurer 0 Explorer 0 Win Type - Total 6 Types 5/0/1/0/0/0/0/0/0/0 Lore% 60 Gallery% 56 Achievement% 52 Wizard Run 0 Options --------- Layout 0 ASCII 0 Keyboard 1 Movement Numpad Keybinds 0 Fullscreen 1 Font 24/Proggy Map View 76x56 Zoom Use 0% Tactical HUD 1 Map Filters NONE Filters NONE Steam 1 RUN: 56e72f92-6dbe-4ed5-adc9-40fc2fd92554